[Event "Titled Tuesday Blitz April 18 Early 2023"]
[White "Estrada Nieto, Julian"]
[Black "Fuzesabonyilaci"]
[WhiteFideId "5101018"]
[WhiteElo "2161"]
[BlackElo "2334"]
[Result "0-1"]
[Round "11"]
[TimeControl "180+2"]
[Date "2023.04.18"]
[WhiteClock "0:01:08"]
[BlackClock "0:00:43"]

1. e4 {[%clk 0:03:00]}  e5 {[%clk 0:02:59]} 2. Nf3 {[%clk 0:03:01]}  Nc6 {[%clk 0:02:59]} 3. Bb5 {[%clk 0:03:01]}  a6 {[%clk 0:02:59]} 4. Bxc6 {[%clk 0:03:00]}  dxc6 {[%clk 0:03:00]} 5. O-O {[%clk 0:03:00]}  Qf6 {[%clk 0:02:59]} 6. d4 {[%clk 0:03:00]}  exd4 {[%clk 0:03:00]} 7. Bg5 {[%clk 0:03:01]}  Qd6 {[%clk 0:02:59]} 8. Qxd4 {[%clk 0:03:01]}  Qxd4 {[%clk 0:02:58]} 9. Nxd4 {[%clk 0:03:02]}  f6 {[%clk 0:02:55]} 10. Bf4 {[%clk 0:03:02]}  Bd6 {[%clk 0:02:44]} 11. Ne2 {[%clk 0:03:01]}  Bxf4 {[%clk 0:02:39]} 12. Nxf4 {[%clk 0:03:00]}  Bd7 {[%clk 0:02:39]} 13. Nc3 {[%clk 0:02:58]}  O-O-O {[%clk 0:02:39]} 14. Rfd1 {[%clk 0:02:58]}  Nh6 {[%clk 0:02:34]} 15. f3 {[%clk 0:02:57]}  Nf7 {[%clk 0:02:34]} 16. Nd3 {[%clk 0:02:50]}  b6 {[%clk 0:02:32]} 17. Kf2 {[%clk 0:02:45]}  c5 {[%clk 0:02:29]} 18. Nd5 {[%clk 0:02:43]}  Rhe8 {[%clk 0:02:26]} 19. b3 {[%clk 0:02:30]}  Bc6 {[%clk 0:02:15]} 20. N3f4 {[%clk 0:02:28]}  Ne5 {[%clk 0:02:04]} 21. Rd2 {[%clk 0:02:26]}  c4 {[%clk 0:01:59]} 22. Rad1 {[%clk 0:02:25]}  Kb7 {[%clk 0:01:50]} 23. Nb4 {[%clk 0:02:09]}  Rxd2+ {[%clk 0:01:48]} 24. Rxd2 {[%clk 0:02:09]}  cxb3 {[%clk 0:01:46]} 25. cxb3 {[%clk 0:02:03]}  a5 {[%clk 0:01:38]} 26. Nxc6 {[%clk 0:02:03]}  Kxc6 {[%clk 0:01:33]} 27. Nd5 {[%clk 0:02:03]}  Kb7 {[%clk 0:01:30]} 28. h3 {[%clk 0:02:00]}  Rd8 {[%clk 0:01:25]} 29. Ke2 {[%clk 0:01:55]}  Ng6 {[%clk 0:01:21]} 30. g3 {[%clk 0:01:53]}  c6 {[%clk 0:01:19]} 31. Ne3 {[%clk 0:01:53]}  Rxd2+ {[%clk 0:01:18]} 32. Kxd2 {[%clk 0:01:53]}  Ne5 {[%clk 0:01:17]} 33. Ke2 {[%clk 0:01:49]}  Kc7 {[%clk 0:01:15]} 34. f4 {[%clk 0:01:49]}  Nf7 {[%clk 0:01:14]} 35. Nf5 {[%clk 0:01:50]}  g6 {[%clk 0:01:13]} 36. Nd4 {[%clk 0:01:48]}  Kd7 {[%clk 0:01:11]} 37. Ke3 {[%clk 0:01:46]}  Nd6 {[%clk 0:01:11]} 38. g4 {[%clk 0:01:43]}  c5 {[%clk 0:01:11]} 39. Nf3 {[%clk 0:01:42]}  b5 {[%clk 0:01:10]} 40. e5 {[%clk 0:01:42]}  fxe5 {[%clk 0:01:10]} 41. Nxe5+ {[%clk 0:01:43]}  Ke6 {[%clk 0:01:10]} 42. Nc6 {[%clk 0:01:40]}  a4 {[%clk 0:01:00]} 43. bxa4 {[%clk 0:01:38]}  bxa4 {[%clk 0:01:00]} 44. Kd3 {[%clk 0:01:36]}  Kd5 {[%clk 0:01:00]} 45. Ne5 {[%clk 0:01:33]}  c4+ {[%clk 0:00:57]} 46. Kc3 {[%clk 0:01:28]}  Ne4+ {[%clk 0:00:54]} 47. Kb4 {[%clk 0:01:24]}  c3 {[%clk 0:00:52]} 48. Nc4 {[%clk 0:01:21]}  Kd4 {[%clk 0:00:47]} 49. Na3 {[%clk 0:01:20]}  Kd3 {[%clk 0:00:46]} 50. Kxa4 {[%clk 0:01:20]}  c2 {[%clk 0:00:46]} 51. Nxc2 {[%clk 0:01:20]}  Kxc2 {[%clk 0:00:47]} 52. Kb5 {[%clk 0:01:20]}  Kd3 {[%clk 0:00:40]} 53. a4 {[%clk 0:01:18]}  Nc3+ {[%clk 0:00:39]} 54. Kb4 {[%clk 0:01:17]}  Nxa4 {[%clk 0:00:39]} 55. Kxa4 {[%clk 0:01:17]}  Ke4 {[%clk 0:00:38]} 56. f5 {[%clk 0:01:14]}  gxf5 {[%clk 0:00:39]} 57. gxf5 {[%clk 0:01:14]}  Kxf5 {[%clk 0:00:40]} 58. Kb4 {[%clk 0:01:14]}  Kf4 {[%clk 0:00:40]} 59. h4 {[%clk 0:01:07]}  Kg4 {[%clk 0:00:40]} 60. h5 {[%clk 0:01:07]}  Kxh5 {[%clk 0:00:40]} 61. Kc3 {[%clk 0:01:08]}  Kg4 {[%clk 0:00:41]} 62. Kd2 {[%clk 0:01:08]}  Kg3 {[%clk 0:00:41]} 63. Ke1 {[%clk 0:01:08]}  Kg2 {[%clk 0:00:41]} 64. Ke2 {[%clk 0:01:07]}  h5 {[%clk 0:00:42]} 65. Ke3 {[%clk 0:01:07]}  h4 {[%clk 0:00:42]} 66. Kf4 {[%clk 0:01:08]}  h3 {[%clk 0:00:43]} 0-1


[Site "https://www.chess.com"]

[Event "Titled Tuesday Blitz April 18 Early 2023"]
[White "Alexikov, Alexander"]
[Black "Kubatko, Ivan"]
[WhiteFideId "14103958"]
[BlackFideId "24111473"]
[WhiteElo "2186"]
[BlackElo "2285"]
[Result "0-1"]
[Round "11"]
[TimeControl "180+2"]
[Date "2023.04.18"]
[WhiteClock "0:00:57"]
[BlackClock "0:00:36"]

1. e4 {[%clk 0:03:00]}  d5 {[%clk 0:02:59]} 2. exd5 {[%clk 0:02:59]}  Qxd5 {[%clk 0:02:58]} 3. Nc3 {[%clk 0:02:59]}  Qa5 {[%clk 0:02:57]} 4. b4 {[%clk 0:02:58]}  Qxb4 {[%clk 0:02:54]} 5. Nb5 {[%clk 0:02:58]}  Qa5 {[%clk 0:02:29]} 6. Bc4 {[%clk 0:02:54]}  Nf6 {[%clk 0:02:25]} 7. Bb2 {[%clk 0:02:20]}  c6 {[%clk 0:02:23]} 8. Bc3 {[%clk 0:02:20]}  Qd8 {[%clk 0:02:10]} 9. Nd4 {[%clk 0:02:20]}  e5 {[%clk 0:01:54]} 10. Ndf3 {[%clk 0:02:18]}  Bd6 {[%clk 0:01:40]} 11. Nxe5 {[%clk 0:02:02]}  O-O {[%clk 0:01:40]} 12. Ngf3 {[%clk 0:01:59]}  Nd5 {[%clk 0:01:40]} 13. Bb2 {[%clk 0:01:57]}  Nd7 {[%clk 0:01:26]} 14. Nxd7 {[%clk 0:01:49]}  Bxd7 {[%clk 0:01:27]} 15. O-O {[%clk 0:01:46]}  Bg4 {[%clk 0:01:24]} 16. h3 {[%clk 0:01:45]}  Bh5 {[%clk 0:01:24]} 17. Bxd5 {[%clk 0:01:23]}  cxd5 {[%clk 0:01:24]} 18. g4 {[%clk 0:01:22]}  Bg6 {[%clk 0:01:22]} 19. Ne5 {[%clk 0:01:22]}  Qh4 {[%clk 0:01:02]} 20. Kg2 {[%clk 0:01:19]}  h5 {[%clk 0:00:43]} 21. Nf3 {[%clk 0:01:02]}  Be4 {[%clk 0:00:42]} 22. d3 {[%clk 0:01:01]}  hxg4 {[%clk 0:00:37]} 23. dxe4 {[%clk 0:00:59]}  Qxh3+ {[%clk 0:00:36]} 24. Kg1 {[%clk 0:00:57]}  gxf3 {[%clk 0:00:36]} 0-1


[Site "https://www.chess.com"]

[Event "Titled Tuesday Blitz April 18 Early 2023"]
[White "Vivas Zamora, Fabian Ernesto"]
[Black "Fajdetic, Hrvoje"]
[WhiteFideId "3902480"]
[BlackFideId "14501945"]
[WhiteElo "2262"]
[BlackElo "2185"]
[Result "1-0"]
[Round "11"]
[TimeControl "180+2"]
[Date "2023.04.18"]
[WhiteClock "0:01:02"]
[BlackClock "0:00:22"]

1. e4 {[%clk 0:02:55]}  c5 {[%clk 0:02:58]} 2. Nc3 {[%clk 0:02:55]}  g6 {[%clk 0:02:53]} 3. d4 {[%clk 0:02:55]}  cxd4 {[%clk 0:02:51]} 4. Qxd4 {[%clk 0:02:56]}  Nf6 {[%clk 0:02:48]} 5. Be3 {[%clk 0:02:54]}  Nc6 {[%clk 0:02:45]} 6. Qd2 {[%clk 0:02:54]}  Bg7 {[%clk 0:02:44]} 7. f3 {[%clk 0:02:53]}  O-O {[%clk 0:02:40]} 8. O-O-O {[%clk 0:02:54]}  Qa5 {[%clk 0:02:25]} 9. Kb1 {[%clk 0:02:45]}  b5 {[%clk 0:02:20]} 10. Nxb5 {[%clk 0:02:32]}  Qxd2 {[%clk 0:02:09]} 11. Rxd2 {[%clk 0:02:30]}  Rb8 {[%clk 0:02:08]} 12. b3 {[%clk 0:02:21]}  a6 {[%clk 0:01:56]} 13. Nd4 {[%clk 0:02:15]}  Na5 {[%clk 0:01:23]} 14. Nh3 {[%clk 0:01:51]}  d5 {[%clk 0:01:23]} 15. e5 {[%clk 0:01:49]}  Nh5 {[%clk 0:01:17]} 16. g4 {[%clk 0:01:44]}  Bxe5 {[%clk 0:01:16]} 17. gxh5 {[%clk 0:01:44]}  Bxh3 {[%clk 0:01:15]} 18. Bxh3 {[%clk 0:01:39]}  Nc4 {[%clk 0:01:15]} 19. Nc6 {[%clk 0:01:36]}  Nxd2+ {[%clk 0:00:46]} 20. Bxd2 {[%clk 0:01:37]}  Bd6 {[%clk 0:00:41]} 21. Nxb8 {[%clk 0:01:36]}  Rxb8 {[%clk 0:00:40]} 22. f4 {[%clk 0:01:29]}  e6 {[%clk 0:00:39]} 23. hxg6 {[%clk 0:01:21]}  hxg6 {[%clk 0:00:39]} 24. Rf1 {[%clk 0:01:12]}  Kf8 {[%clk 0:00:33]} 25. Bc3 {[%clk 0:01:07]}  Rc8 {[%clk 0:00:27]} 26. Be5 {[%clk 0:01:07]}  Ba3 {[%clk 0:00:26]} 27. Bg4 {[%clk 0:01:04]}  Ke7 {[%clk 0:00:25]} 28. h4 {[%clk 0:01:02]}  Rh8 {[%clk 0:00:22]} 29. Bxh8 {[%clk 0:01:02]} 1-0


[Site "https://www.chess.com"]

[Event "Titled Tuesday Blitz April 18 Early 2023"]
[White "Avazkhonov, Alikhon"]
[Black "Pourkashiyan, Atousa"]
[WhiteFideId "14208504"]
[BlackFideId "12502014"]
[WhiteElo "1739"]
[BlackElo "2228"]
[Result "1/2-1/2"]
[Round "11"]
[TimeControl "180+2"]
[Date "2023.04.18"]
[WhiteClock "0:00:05"]
[BlackClock "0:00:07"]

1. d4 {[%clk 0:02:54]}  Nf6 {[%clk 0:02:56]} 2. c4 {[%clk 0:02:55]}  e6 {[%clk 0:02:56]} 3. Nc3 {[%clk 0:02:56]}  Bb4 {[%clk 0:02:56]} 4. e3 {[%clk 0:02:53]}  O-O {[%clk 0:02:55]} 5. Bd3 {[%clk 0:02:54]}  d5 {[%clk 0:02:54]} 6. Ne2 {[%clk 0:02:54]}  dxc4 {[%clk 0:02:51]} 7. Bxc4 {[%clk 0:02:55]}  c5 {[%clk 0:02:51]} 8. a3 {[%clk 0:02:28]}  Ba5 {[%clk 0:02:48]} 9. dxc5 {[%clk 0:02:23]}  Qxd1+ {[%clk 0:02:34]} 10. Kxd1 {[%clk 0:02:24]}  Ng4 {[%clk 0:02:18]} 11. Ke1 {[%clk 0:02:24]}  Ne5 {[%clk 0:02:16]} 12. Bb5 {[%clk 0:01:50]}  a6 {[%clk 0:02:14]} 13. f4 {[%clk 0:01:50]}  axb5 {[%clk 0:02:10]} 14. fxe5 {[%clk 0:01:51]}  Nc6 {[%clk 0:02:07]} 15. Bd2 {[%clk 0:01:09]}  Nxe5 {[%clk 0:01:59]} 16. Rb1 {[%clk 0:01:09]}  b4 {[%clk 0:01:56]} 17. Nb5 {[%clk 0:01:09]}  bxa3 {[%clk 0:01:53]} 18. Nxa3 {[%clk 0:01:03]}  Nd3+ {[%clk 0:01:51]} 19. Kd1 {[%clk 0:01:00]}  Nf2+ {[%clk 0:01:51]} 20. Kc2 {[%clk 0:01:00]}  Nxh1 {[%clk 0:01:52]} 21. Rxh1 {[%clk 0:00:57]}  Bxd2 {[%clk 0:01:52]} 22. Kxd2 {[%clk 0:00:57]}  Rd8+ {[%clk 0:01:52]} 23. Kc3 {[%clk 0:00:55]}  Ra5 {[%clk 0:01:51]} 24. Kb4 {[%clk 0:00:54]}  Ra8 {[%clk 0:01:47]} 25. Nc3 {[%clk 0:00:48]}  Rd2 {[%clk 0:01:44]} 26. Nc4 {[%clk 0:00:49]}  Rxg2 {[%clk 0:01:43]} 27. Nb6 {[%clk 0:00:50]}  Rb8 {[%clk 0:01:43]} 28. Rd1 {[%clk 0:00:50]}  Kf8 {[%clk 0:01:33]} 29. Rd8+ {[%clk 0:00:51]}  Ke7 {[%clk 0:01:34]} 30. Rh8 {[%clk 0:00:45]}  Rxb2+ {[%clk 0:01:31]} 31. Ka3 {[%clk 0:00:45]}  Rxh2 {[%clk 0:01:31]} 32. Nxc8+ {[%clk 0:00:44]}  Kf6 {[%clk 0:01:30]} 33. Ne4+ {[%clk 0:00:41]}  Ke5 {[%clk 0:01:27]} 34. Ned6 {[%clk 0:00:39]}  Ra8+ {[%clk 0:01:08]} 35. Kb4 {[%clk 0:00:32]}  Raa2 {[%clk 0:00:55]} 36. Nc4+ {[%clk 0:00:23]}  Ke4 {[%clk 0:00:51]} 37. N8d6+ {[%clk 0:00:24]}  Kd3 {[%clk 0:00:49]} 38. Nxb7 {[%clk 0:00:24]}  Rhb2+ {[%clk 0:00:33]} 39. Nxb2+ {[%clk 0:00:21]}  Rxb2+ {[%clk 0:00:33]} 40. Ka5 {[%clk 0:00:21]}  Rxb7 {[%clk 0:00:34]} 41. c6 {[%clk 0:00:21]}  Rb1 {[%clk 0:00:25]} 42. c7 {[%clk 0:00:21]}  Rc1 {[%clk 0:00:25]} 43. Kb6 {[%clk 0:00:22]}  Kxe3 {[%clk 0:00:18]} 44. Rxh7 {[%clk 0:00:22]}  f5 {[%clk 0:00:17]} 45. Rxg7 {[%clk 0:00:20]}  f4 {[%clk 0:00:16]} 46. Re7 {[%clk 0:00:21]}  Rb1+ {[%clk 0:00:09]} 47. Ka7 {[%clk 0:00:17]}  Rc1 {[%clk 0:00:08]} 48. Rxe6+ {[%clk 0:00:15]}  Kf2 {[%clk 0:00:08]} 49. Kb7 {[%clk 0:00:15]}  Rxc7+ {[%clk 0:00:07]} 50. Kxc7 {[%clk 0:00:16]}  f3 {[%clk 0:00:07]} 51. Kd6 {[%clk 0:00:15]}  Kg1 {[%clk 0:00:07]} 52. Rg6+ {[%clk 0:00:14]}  Kh2 {[%clk 0:00:07]} 53. Rf6 {[%clk 0:00:08]}  Kg2 {[%clk 0:00:06]} 54. Ke5 {[%clk 0:00:07]}  f2 {[%clk 0:00:07]} 55. Rxf2+ {[%clk 0:00:05]}  Kxf2 {[%clk 0:00:07]} 1/2-1/2


[Site "https://www.chess.com"]

[Event "Titled Tuesday Blitz April 18 Early 2023"]
[White "Chirivi C, Jenny Astrid"]
[Black "Andrews, Todd"]
[WhiteFideId "4403061"]
[BlackFideId "2012456"]
[WhiteElo "2001"]
[BlackElo "2417"]
[Result "0-1"]
[Round "11"]
[TimeControl "180+2"]
[Date "2023.04.18"]
[WhiteClock "0:00:01"]
[BlackClock "0:00:38"]

1. d4 {[%clk 0:03:00]}  Nf6 {[%clk 0:02:58]} 2. c4 {[%clk 0:02:59]}  c5 {[%clk 0:02:59]} 3. d5 {[%clk 0:02:59]}  b5 {[%clk 0:02:59]} 4. cxb5 {[%clk 0:02:59]}  a6 {[%clk 0:03:00]} 5. bxa6 {[%clk 0:02:59]}  g6 {[%clk 0:03:00]} 6. Nc3 {[%clk 0:02:59]}  Bg7 {[%clk 0:03:01]} 7. Nf3 {[%clk 0:02:56]}  O-O {[%clk 0:03:01]} 8. g3 {[%clk 0:02:45]}  Qa5 {[%clk 0:02:55]} 9. Bg2 {[%clk 0:02:43]}  d6 {[%clk 0:02:54]} 10. O-O {[%clk 0:02:42]}  Bxa6 {[%clk 0:02:54]} 11. Qc2 {[%clk 0:02:37]}  Nbd7 {[%clk 0:02:54]} 12. Rd1 {[%clk 0:02:35]}  Bb7 {[%clk 0:02:50]} 13. Bd2 {[%clk 0:02:31]}  Qa6 {[%clk 0:02:50]} 14. Be1 {[%clk 0:02:22]}  Nb6 {[%clk 0:02:48]} 15. b3 {[%clk 0:02:22]}  Nfxd5 {[%clk 0:02:44]} 16. Ng5 {[%clk 0:02:02]}  Nb4 {[%clk 0:02:38]} 17. Bxb7 {[%clk 0:01:55]}  Nxc2 {[%clk 0:02:23]} 18. Bxa6 {[%clk 0:01:54]}  Nxa1 {[%clk 0:02:22]} 19. Bb7 {[%clk 0:01:42]}  Ra7 {[%clk 0:02:08]} 20. Be4 {[%clk 0:01:25]}  d5 {[%clk 0:01:49]} 21. Nxd5 {[%clk 0:01:09]}  Nxd5 {[%clk 0:01:49]} 22. Bxd5 {[%clk 0:01:09]}  Rxa2 {[%clk 0:01:48]} 23. b4 {[%clk 0:00:51]}  Rxe2 {[%clk 0:01:47]} 24. bxc5 {[%clk 0:00:48]}  e6 {[%clk 0:01:48]} 25. Bf3 {[%clk 0:00:42]}  Rc2 {[%clk 0:01:45]} 26. c6 {[%clk 0:00:40]}  Nb3 {[%clk 0:01:43]} 27. Bb4 {[%clk 0:00:31]}  Rc8 {[%clk 0:01:22]} 28. Bd6 {[%clk 0:00:22]}  Nd4 {[%clk 0:01:19]} 29. Be4 {[%clk 0:00:19]}  Rc3 {[%clk 0:01:11]} 30. c7 {[%clk 0:00:19]}  h6 {[%clk 0:01:04]} 31. Nh3 {[%clk 0:00:17]}  g5 {[%clk 0:00:52]} 32. Kg2 {[%clk 0:00:17]}  R8xc7 {[%clk 0:00:49]} 33. Bxc7 {[%clk 0:00:17]}  Rxc7 {[%clk 0:00:50]} 34. Ng1 {[%clk 0:00:14]}  f5 {[%clk 0:00:49]} 35. Bb1 {[%clk 0:00:11]}  g4 {[%clk 0:00:48]} 36. h3 {[%clk 0:00:11]}  h5 {[%clk 0:00:48]} 37. hxg4 {[%clk 0:00:11]}  hxg4 {[%clk 0:00:49]} 38. Ba2 {[%clk 0:00:11]}  Kf7 {[%clk 0:00:47]} 39. Bb1 {[%clk 0:00:08]}  Rb7 {[%clk 0:00:45]} 40. Bd3 {[%clk 0:00:09]}  Rb2 {[%clk 0:00:45]} 41. Rb1 {[%clk 0:00:09]}  Rd2 {[%clk 0:00:43]} 42. Rb7+ {[%clk 0:00:09]}  Kf6 {[%clk 0:00:41]} 43. Bb1 {[%clk 0:00:09]}  Bh6 {[%clk 0:00:40]} 44. Rb8 {[%clk 0:00:08]}  Be3 {[%clk 0:00:39]} 45. Rf8+ {[%clk 0:00:07]}  Ke5 {[%clk 0:00:39]} 46. Ra8 {[%clk 0:00:02]}  Rxf2+ {[%clk 0:00:39]} 47. Kh1 {[%clk 0:00:02]}  Rf1 {[%clk 0:00:38]} 48. Ra5+ {[%clk 0:00:01]}  Kf6 {[%clk 0:00:38]} 0-1


[Site "https://www.chess.com"]

[Event "Titled Tuesday Blitz April 18 Early 2023"]
[White "Bashirli, Saadat"]
[Black "Pein, Jonathan"]
[WhiteFideId "13429990"]
[BlackFideId "417092"]
[WhiteElo "1408"]
[BlackElo "2151"]
[Result "1-0"]
[Round "11"]
[TimeControl "180+2"]
[Date "2023.04.18"]
[WhiteClock "0:01:13"]
[BlackClock "0:00:44"]

1. e4 {[%clk 0:03:00]}  e5 {[%clk 0:02:59]} 2. Nf3 {[%clk 0:02:58]}  Nf6 {[%clk 0:02:59]} 3. Nxe5 {[%clk 0:02:58]}  d6 {[%clk 0:03:00]} 4. Nc4 {[%clk 0:02:57]}  Nxe4 {[%clk 0:02:57]} 5. Qe2 {[%clk 0:02:57]}  Qe7 {[%clk 0:02:56]} 6. Ne3 {[%clk 0:02:58]}  c6 {[%clk 0:02:51]} 7. Nc3 {[%clk 0:02:56]}  Nxc3 {[%clk 0:02:50]} 8. bxc3 {[%clk 0:02:56]}  g6 {[%clk 0:02:47]} 9. Ba3 {[%clk 0:02:55]}  Bg7 {[%clk 0:02:46]} 10. Nc4 {[%clk 0:02:53]}  Qxe2+ {[%clk 0:02:46]} 11. Bxe2 {[%clk 0:02:53]}  d5 {[%clk 0:02:42]} 12. Nd6+ {[%clk 0:02:51]}  Kd7 {[%clk 0:02:36]} 13. Nxf7 {[%clk 0:02:49]}  Re8 {[%clk 0:02:25]} 14. Ng5 {[%clk 0:02:48]}  Na6 {[%clk 0:02:17]} 15. Kf1 {[%clk 0:02:44]}  Kc7 {[%clk 0:02:14]} 16. Rb1 {[%clk 0:02:34]}  Bf5 {[%clk 0:02:13]} 17. Bd3 {[%clk 0:02:18]}  Bg4 {[%clk 0:02:10]} 18. f3 {[%clk 0:02:17]}  Bd7 {[%clk 0:02:08]} 19. Kf2 {[%clk 0:02:17]}  h6 {[%clk 0:02:05]} 20. Bxg6 {[%clk 0:02:11]}  hxg5 {[%clk 0:02:04]} 21. Bxe8 {[%clk 0:02:11]}  Rxe8 {[%clk 0:02:05]} 22. h4 {[%clk 0:02:07]}  gxh4 {[%clk 0:01:52]} 23. Rxh4 {[%clk 0:02:08]}  Be5 {[%clk 0:01:51]} 24. Rbh1 {[%clk 0:02:03]}  Rg8 {[%clk 0:01:49]} 25. g4 {[%clk 0:02:00]}  c5 {[%clk 0:01:47]} 26. Rh5 {[%clk 0:01:57]}  Kd6 {[%clk 0:01:42]} 27. d4 {[%clk 0:01:53]}  Bf4 {[%clk 0:01:36]} 28. dxc5+ {[%clk 0:01:45]}  Kc6 {[%clk 0:01:34]} 29. Rd1 {[%clk 0:01:42]}  Nc7 {[%clk 0:01:28]} 30. Rd4 {[%clk 0:01:32]}  Bg5 {[%clk 0:01:19]} 31. c4 {[%clk 0:01:24]}  dxc4 {[%clk 0:01:14]} 32. Rd6+ {[%clk 0:01:24]}  Kb5 {[%clk 0:01:09]} 33. Rxd7 {[%clk 0:01:24]}  Ne6 {[%clk 0:01:06]} 34. Rxb7+ {[%clk 0:01:23]}  Kc6 {[%clk 0:01:06]} 35. Rxa7 {[%clk 0:01:23]}  Nf4 {[%clk 0:01:06]} 36. Rhh7 {[%clk 0:01:19]}  Rd8 {[%clk 0:00:56]} 37. Ra6+ {[%clk 0:01:14]}  Kd5 {[%clk 0:00:44]} 38. Rd6+ {[%clk 0:01:13]} 1-0


[Site "https://www.chess.com"]

[Event "Titled Tuesday Blitz April 18 Early 2023"]
[White "Inepton_Fermion"]
[Black "Gonzalez, Francisco Silva"]
[BlackFideId "1512285"]
[WhiteElo "2260"]
[BlackElo "2074"]
[Result "1-0"]
[Round "11"]
[TimeControl "180+2"]
[Date "2023.04.18"]
[WhiteClock "0:00:05"]
[BlackClock "0:00:09"]

1. e4 {[%clk 0:03:00]}  e5 {[%clk 0:02:53]} 2. Nf3 {[%clk 0:03:01]}  Nc6 {[%clk 0:02:51]} 3. Bc4 {[%clk 0:03:01]}  Bc5 {[%clk 0:02:51]} 4. c3 {[%clk 0:03:02]}  Nf6 {[%clk 0:02:51]} 5. d4 {[%clk 0:03:02]}  exd4 {[%clk 0:02:51]} 6. e5 {[%clk 0:03:03]}  d5 {[%clk 0:02:49]} 7. Bb5 {[%clk 0:03:04]}  Ne4 {[%clk 0:02:49]} 8. cxd4 {[%clk 0:03:04]}  Bb6 {[%clk 0:02:49]} 9. Nc3 {[%clk 0:02:58]}  O-O {[%clk 0:02:49]} 10. Be3 {[%clk 0:02:55]}  f5 {[%clk 0:02:40]} 11. exf6 {[%clk 0:01:25]}  Nxc3 {[%clk 0:02:39]} 12. bxc3 {[%clk 0:01:24]}  Qxf6 {[%clk 0:02:38]} 13. O-O {[%clk 0:01:21]}  Bg4 {[%clk 0:02:36]} 14. Be2 {[%clk 0:01:21]}  h6 {[%clk 0:02:28]} 15. a4 {[%clk 0:01:21]}  Kh8 {[%clk 0:02:22]} 16. h3 {[%clk 0:01:15]}  Bxf3 {[%clk 0:02:19]} 17. Bxf3 {[%clk 0:01:16]}  Rad8 {[%clk 0:02:16]} 18. Qd3 {[%clk 0:01:02]}  Na5 {[%clk 0:02:13]} 19. Bd1 {[%clk 0:00:49]}  Qf5 {[%clk 0:02:09]} 20. Qe2 {[%clk 0:00:45]}  Qf7 {[%clk 0:02:02]} 21. Bc2 {[%clk 0:00:45]}  c6 {[%clk 0:02:01]} 22. Qd3 {[%clk 0:00:39]}  Qg8 {[%clk 0:02:00]} 23. Rae1 {[%clk 0:00:39]}  Rde8 {[%clk 0:02:00]} 24. Bc1 {[%clk 0:00:36]}  Nc4 {[%clk 0:01:59]} 25. Qg6 {[%clk 0:00:24]}  Rxe1 {[%clk 0:01:44]} 26. Rxe1 {[%clk 0:00:25]}  Rf6 {[%clk 0:01:35]} 27. Qd3 {[%clk 0:00:25]}  Rf8 {[%clk 0:01:33]} 28. Re6 {[%clk 0:00:19]}  a5 {[%clk 0:00:20]} 29. Bxh6 {[%clk 0:00:18]}  Rf6 {[%clk 0:00:19]} 30. Re8 {[%clk 0:00:17]}  Rxh6 {[%clk 0:00:19]} 31. Rxg8+ {[%clk 0:00:17]}  Kxg8 {[%clk 0:00:19]} 32. Qf5 {[%clk 0:00:15]}  Rf6 {[%clk 0:00:20]} 33. Qc8+ {[%clk 0:00:15]}  Rf8 {[%clk 0:00:18]} 34. Qxb7 {[%clk 0:00:16]}  Rf6 {[%clk 0:00:18]} 35. Bd3 {[%clk 0:00:13]}  Bd8 {[%clk 0:00:18]} 36. Bxc4 {[%clk 0:00:12]}  dxc4 {[%clk 0:00:18]} 37. Qc8 {[%clk 0:00:12]}  Rd6 {[%clk 0:00:19]} 38. f4 {[%clk 0:00:09]}  Kf7 {[%clk 0:00:19]} 39. g4 {[%clk 0:00:09]}  Bf6 {[%clk 0:00:18]} 40. Kf2 {[%clk 0:00:08]}  Ke7 {[%clk 0:00:18]} 41. Qc7+ {[%clk 0:00:08]}  Ke6 {[%clk 0:00:19]} 42. Qxa5 {[%clk 0:00:08]}  Rd5 {[%clk 0:00:17]} 43. Qa6 {[%clk 0:00:07]}  Kd6 {[%clk 0:00:17]} 44. Qxc4 {[%clk 0:00:07]}  g5 {[%clk 0:00:15]} 45. f5 {[%clk 0:00:06]}  Bd8 {[%clk 0:00:14]} 46. Qb4+ {[%clk 0:00:07]}  Kd7 {[%clk 0:00:13]} 47. Qb7+ {[%clk 0:00:06]}  Bc7 {[%clk 0:00:13]} 48. Kf3 {[%clk 0:00:04]}  Ra5 {[%clk 0:00:13]} 49. Qb4 {[%clk 0:00:03]}  Rd5 {[%clk 0:00:12]} 50. Ke4 {[%clk 0:00:03]}  Ba5 {[%clk 0:00:12]} 51. Qb7+ {[%clk 0:00:03]}  Bc7 {[%clk 0:00:12]} 52. c4 {[%clk 0:00:03]}  Ra5 {[%clk 0:00:11]} 53. Qb4 {[%clk 0:00:03]}  c5 {[%clk 0:00:10]} 54. dxc5 {[%clk 0:00:03]}  Kc6 {[%clk 0:00:10]} 55. f6 {[%clk 0:00:01]}  Rxc5 {[%clk 0:00:10]} 56. Qxc5+ {[%clk 0:00:01]}  Kxc5 {[%clk 0:00:09]} 57. f7 {[%clk 0:00:02]}  Bd6 {[%clk 0:00:10]} 58. Kf5 {[%clk 0:00:03]}  Kxc4 {[%clk 0:00:10]} 59. Kxg5 {[%clk 0:00:03]}  Kb4 {[%clk 0:00:10]} 60. Kf6 {[%clk 0:00:04]}  Kxa4 {[%clk 0:00:11]} 61. g5 {[%clk 0:00:05]}  Bf8 {[%clk 0:00:09]} 62. g6 {[%clk 0:00:05]}  Bg7+ {[%clk 0:00:09]} 63. Kxg7 {[%clk 0:00:05]} 1-0


[Site "https://www.chess.com"]

[Event "Titled Tuesday Blitz April 18 Early 2023"]
[White "Yanayt, Eugene"]
[Black "Aanna12"]
[WhiteFideId "2020165"]
[WhiteElo "2083"]
[BlackElo "2211"]
[Result "0-1"]
[Round "11"]
[TimeControl "180+2"]
[Date "2023.04.18"]
[WhiteClock "0:00:35"]
[BlackClock "0:00:44"]

1. Nf3 {[%clk 0:03:00]}  c5 {[%clk 0:02:58]} 2. e4 {[%clk 0:02:51]}  d6 {[%clk 0:02:57]} 3. d4 {[%clk 0:02:51]}  cxd4 {[%clk 0:02:57]} 4. Nxd4 {[%clk 0:02:52]}  Nf6 {[%clk 0:02:57]} 5. Nc3 {[%clk 0:02:52]}  a6 {[%clk 0:02:57]} 6. Be3 {[%clk 0:02:52]}  e5 {[%clk 0:02:56]} 7. Nb3 {[%clk 0:02:52]}  Be7 {[%clk 0:02:57]} 8. f3 {[%clk 0:02:49]}  Be6 {[%clk 0:02:56]} 9. g4 {[%clk 0:02:49]}  d5 {[%clk 0:02:54]} 10. g5 {[%clk 0:02:48]}  d4 {[%clk 0:02:52]} 11. gxf6 {[%clk 0:02:48]}  Bxf6 {[%clk 0:02:52]} 12. Qd2 {[%clk 0:02:46]}  dxe3 {[%clk 0:02:49]} 13. Qxe3 {[%clk 0:02:45]}  Bg5 {[%clk 0:02:44]} 14. Qc5 {[%clk 0:02:35]}  Bh4+ {[%clk 0:02:39]} 15. Ke2 {[%clk 0:02:34]}  Nd7 {[%clk 0:02:36]} 16. Qb4 {[%clk 0:02:22]}  Be7 {[%clk 0:02:29]} 17. Qa4 {[%clk 0:02:17]}  b5 {[%clk 0:02:01]} 18. Nxb5 {[%clk 0:02:17]}  axb5 {[%clk 0:01:59]} 19. Qxb5 {[%clk 0:02:17]}  Rb8 {[%clk 0:01:52]} 20. Qa6 {[%clk 0:02:11]}  O-O {[%clk 0:01:50]} 21. Rd1 {[%clk 0:02:08]}  Qc7 {[%clk 0:01:50]} 22. Kf2 {[%clk 0:01:57]}  Bh4+ {[%clk 0:01:49]} 23. Kg2 {[%clk 0:01:57]}  Nc5 {[%clk 0:01:46]} 24. Qe2 {[%clk 0:01:53]}  Nxb3 {[%clk 0:01:45]} 25. axb3 {[%clk 0:01:53]}  Qe7 {[%clk 0:01:42]} 26. Rg1 {[%clk 0:01:51]}  Rfd8 {[%clk 0:01:26]} 27. Rxd8+ {[%clk 0:01:44]}  Rxd8 {[%clk 0:01:25]} 28. Kh1 {[%clk 0:01:44]}  Qd6 {[%clk 0:01:21]} 29. Qb5 {[%clk 0:01:24]}  Bf2 {[%clk 0:01:06]} 30. Rg2 {[%clk 0:01:20]}  Be3 {[%clk 0:01:03]} 31. Bd3 {[%clk 0:01:20]}  Bf4 {[%clk 0:01:02]} 32. Qa5 {[%clk 0:01:12]}  Bh3 {[%clk 0:01:01]} 33. Rg1 {[%clk 0:01:07]}  Qd4 {[%clk 0:00:57]} 34. Bc4 {[%clk 0:00:59]}  Qd2 {[%clk 0:00:47]} 35. Qxd2 {[%clk 0:00:35]}  Rxd2 {[%clk 0:00:46]} 36. Bd3 {[%clk 0:00:35]}  Rxh2# {[%clk 0:00:44]} 0-1


[Site "https://www.chess.com"]